fUSD/lending_fUSD_20250911
["ID","MTS","AMOUNT","RATE_DAILY","PERIOD"]
[384953833,1757633494854,-400.0,0.00027945,7]
[384953834,1757633494863,-400.0,0.00027945,7]
[384953835,1757633494872,-400.0,0.00027945,7]
[384953836,1757633494882,-470.55,0.00027945,7]
[384953837,1757633494891,-1192.17,0.00027945,7]
[384953838,1757633494900,-400.0,0.00027945,7]
[384953839,1757633494910,-400.0,0.00027945,7]
[384953840,1757633494919,-1028.3,0.00027945,7]
[384953841,1757633494929,-400.0,0.00027945,7]
[384953842,1757633494939,-924.78,0.00027945,7]
[384953843,1757633494948,-400.0,0.00027945,7]
[384953844,1757633494958,-400.0,0.00027945,7]
[384953845,1757633494967,-1333.95,0.00027945,7]
[384953846,1757633494977,-469.37853505,0.00027945,7]
[384953847,1757633494986,-1316.83,0.00027945,7]
[384953848,1757633494995,-1022.6,0.00027945,7]
[384953849,1757633495004,-400.0,0.00027945,7]
[384953850,1757633495013,-867.09,0.00027945,7]
[384953851,1757633495022,-717.0,0.00027945,7]
[384953852,1757633495032,-1990.33,0.00027945,7]
[384953853,1757633495042,-400.0,0.00027945,7]
[384953854,1757633495051,-400.0,0.00027945,7]
[384953855,1757633495060,-400.0,0.00027945,7]
[384953856,1757633495070,-733.5,0.00027945,7]
[384953857,1757633495079,-757.99,0.00027945,7]
[384953858,1757633495089,-2138.73,0.00027945,7]
[384953859,1757633495098,-419.1466416,0.00027945,7]
[384953860,1757633495108,-400.0,0.00027945,7]
[384953861,1757633495117,-434.70563836,0.00027945,7]
[384953862,1757633495126,-786.95,0.00027945,7]
[384953863,1757633495135,-1080.19,0.00027945,7]
[384953864,1757633495145,-436.27,0.00027945,7]
[384953865,1757633495154,-400.0,0.00027945,7]
[384953866,1757633495164,-1408.38,0.00027945,7]
[384953867,1757633495174,-1679.93,0.00027945,7]
[384953868,1757633495183,-891.25,0.00027945,7]
[384953869,1757633495192,-400.0,0.00027945,7]
[384953870,1757633495202,-1455.65,0.00027945,7]
[384953871,1757633495211,-1001.93,0.00027945,7]
[384953872,1757633495220,-911.04,0.00027945,7]
[384953873,1757633495230,-400.0,0.00027945,7]
[384953874,1757633495239,-1087.68,0.00027945,7]
[384953875,1757633495249,-2319.37,0.00027945,7]
[384953876,1757633495258,-400.0,0.00027945,7]
[384953877,1757633495268,-400.0,0.00027945,7]
[384953878,1757633495278,-870.67,0.00027945,7]
[384953879,1757633495287,-4745.08,0.00027945,7]
[384953880,1757633495296,-1022.9,0.00027945,7]
[384953881,1757633495306,-430.57819829,0.00027945,7]
[384953882,1757633495316,-475.11,0.00027945,7]
[384953883,1757633495325,-910.89,0.00027945,7]
[384953884,1757633495334,-400.0,0.00027945,7]
[384953885,1757633495343,-400.0,0.00027945,7]
[384953886,1757633495353,-400.0,0.00027945,7]
[384953887,1757633495363,-1292.66,0.00027945,7]
[384953888,1757633495371,-400.0,0.00027945,7]
[384953889,1757633495381,-1527.47,0.00027945,7]
[384953890,1757633495390,-400.0,0.00027945,7]
[384953891,1757633495399,-400.0,0.00027945,7]
[384953892,1757633495409,-448.79,0.00027945,7]
[384953893,1757633495418,-1002.17,0.00027945,7]
[384953894,1757633495428,-464.58,0.00027945,7]
[384953895,1757633495437,-400.0,0.00027945,7]
[384953896,1757633495446,-400.0,0.00027945,7]
[384953897,1757633495456,-1327.96,0.00027945,7]
[384953898,1757633495466,-903.38,0.00027945,7]
[384953899,1757633495475,-552.5,0.00027945,7]
[384953900,1757633495484,-400.0,0.00027945,7]
[384953901,1757633495494,-400.0,0.00027945,7]
[384953902,1757633495504,-1233.51,0.00027945,7]
[384953903,1757633495513,-400.0,0.00027945,7]
[384953904,1757633495522,-400.0,0.00027945,7]
[384953905,1757633495531,-794.79,0.00027945,7]
[384953906,1757633495540,-400.0,0.00027945,7]
[384953907,1757633495549,-431.41,0.00027945,7]
[384953908,1757633495558,-400.0,0.00027945,7]
[384953909,1757633495568,-300.0,0.00027945,7]
[384953910,1757633495577,-729.34,0.00027945,7]
[384953911,1757633495586,-607.94,0.00027945,7]
[384953912,1757633495595,-400.0,0.00027945,7]
[384953913,1757633495604,-474.99,0.00027945,7]
[384953914,1757633495613,-950.4,0.00027945,7]
[384953915,1757633495622,-1175.32,0.00027945,7]
[384953916,1757633495632,-1985.7,0.00027945,7]
[384953917,1757633495641,-284.68046052,0.00027945,7]
[384953918,1757633495651,-744.96,0.00027945,7]
[384953919,1757633495660,-892.33,0.00027945,7]
[384953920,1757633495671,-400.0,0.00027945,7]
[384953921,1757633495680,-1438.81,0.00027945,7]
[384953922,1757633495689,-886.39,0.00027945,7]
[384953923,1757633495699,-657.15,0.00027945,7]
[384953924,1757633495708,-500.0,0.00027945,2]
[384953925,1757633495719,-1340.31,0.00027945,7]
[384953926,1757633495728,-998.3,0.00027945,7]
[384953927,1757633495737,-5647.79,0.00027945,7]
[384953928,1757633495747,-400.0,0.00027945,7]
[384953929,1757633495757,-400.0,0.00027945,7]
[384953930,1757633495766,-400.0,0.00027945,2]
[384953931,1757633495776,-632.61,0.00027945,7]
[384953932,1757633495786,-400.0,0.00027945,7]
[384953933,1757633495795,-1183.19,0.00027945,7]
[384953934,1757633495805,-1003.05,0.00027945,7]
[384953935,1757633495814,-412.66166513,0.00027945,7]
[384953936,1757633495824,-446.68,0.00027945,7]
[384953937,1757633495834,-400.0,0.00027945,7]
[384953938,1757633495843,-1000.57,0.00027945,7]
[384953939,1757633495852,-400.0,0.00027945,7]
[384953940,1757633495862,-1389.13,0.00027945,7]
[384953941,1757633495872,-1374.75,0.00027945,7]
[384953942,1757633495882,-965.62,0.00027945,7]
[384953943,1757633495891,-450.09,0.00027945,7]
[384953944,1757633495901,-1005.88,0.00027945,7]
[384953945,1757633495910,-579.26,0.00027945,7]
[384953946,1757633495920,-1667.9,0.00027945,7]
[384953947,1757633495932,-400.0,0.00027945,7]
[384953948,1757633495942,-528.32,0.00027945,7]
[384953949,1757633495951,-400.0,0.00027945,7]
[384953950,1757633495960,-1007.03,0.00027945,7]
[384953951,1757633495970,-400.0,0.00027945,7]
[384953952,1757633495979,-1098.51,0.00027945,7]
[384953953,1757633495988,-1266.55,0.00027945,7]
[384953954,1757633495998,-2058.78,0.00027945,7]
[384953955,1757633496007,-400.0,0.00027945,7]
[384953956,1757633496016,-561.88,0.00027945,7]
[384953957,1757633496026,-775.26,0.00027945,7]
[384953958,1757633496035,-400.0,0.00027945,7]
[384953959,1757633496044,-982.86,0.00027945,7]
[384953960,1757633496054,-243.85110157,0.00027945,7]
[384953961,1757633496063,-1094.3,0.00027945,7]
[384953962,1757633496072,-441.63,0.00027945,7]
[384953963,1757633496082,-400.0,0.00027945,7]
[384953964,1757633496091,-442.22776912,0.00027945,7]
[384953965,1757633496100,-989.83,0.00027945,7]
[384953966,1757633496110,-1269.26,0.00027945,7]
[384953967,1757633496120,-1101.97,0.00027945,7]
[384953968,1757633496130,-854.63,0.00027945,7]
[384953969,1757633496139,-802.24,0.00027945,7]
[384953970,1757633496149,-1604.77,0.00027945,7]
[384953971,1757633496158,-1151.18,0.00027945,7]
[384953972,1757633496167,-400.0,0.00027945,7]
[384953973,1757633496177,-861.19,0.00027945,7]
[384953974,1757633496186,-1298.19,0.00027945,7]
[384953975,1757633496195,-952.17,0.00027945,7]
[384953976,1757633496204,-2213.82,0.00027945,7]
[384953977,1757633496214,-2204.19,0.00027945,7]
[384953978,1757633496223,-400.0,0.00027945,7]
[384953979,1757633496233,-400.0,0.00027945,7]
[384953980,1757633496242,-400.0,0.00027945,7]
[384953981,1757633496251,-500.15565837,0.00027945,7]
[384953982,1757633496261,-406.49,0.00027945,7]
[384953983,1757633496270,-400.0,0.00027945,7]
[384953984,1757633496279,-754.57,0.00027945,7]
[384953985,1757633496289,-1178.64,0.00027945,7]
[384953986,1757633496298,-1273.24,0.00027945,7]
[384953987,1757633496307,-1522.42,0.00027945,7]
[384953988,1757633496316,-453.02,0.00027945,7]
[384953989,1757633496326,-400.0,0.00027945,7]
[384953990,1757633496335,-949.12,0.00027945,7]
[384953991,1757633496345,-400.0,0.00027945,7]
[384953992,1757633496355,-1083.88,0.00027945,7]
[384953993,1757633496364,-1959.23,0.00027945,7]
[384953994,1757633496373,-1156.25,0.00027945,7]
[384953995,1757633496383,-1599.37,0.00027945,7]
[384953996,1757633496392,-1233.31,0.00027945,7]
[384953997,1757633496401,-591.65,0.00027945,7]
[384953998,1757633496411,-400.0,0.00027945,7]
[384953999,1757633496420,-1169.6,0.00027945,7]
[384954000,1757633496432,-400.0,0.00027945,7]
[384954001,1757633496442,-609.33,0.00027945,7]
[384954002,1757633496451,-505.59,0.00027945,7]
[384954003,1757633496461,-400.0,0.00027945,7]
[384954004,1757633496470,-1184.35,0.00027945,7]
[384954005,1757633496479,-1314.36,0.00027945,7]
[384954006,1757633496489,-779.61,0.00027945,7]
[384954007,1757633496498,-2191.34,0.00027945,7]
[384954008,1757633496507,-2138.23,0.00027945,7]
[384954009,1757633496517,-3752.4,0.00027945,7]
[384954010,1757633496526,-1286.81,0.00027945,7]
[384954011,1757633496535,-1836.16,0.00027945,7]
[384954012,1757633496545,-408.72102766,0.00027945,7]
[384954013,1757633496554,-400.0,0.00027945,7]
[384954014,1757633496564,-400.0,0.00027945,7]
[384954015,1757633496574,-2397.01,0.00027945,7]
[384954016,1757633496584,-1204.85,0.00027945,7]
[384954017,1757633496594,-715.33,0.00027945,7]
[384954018,1757633496603,-1264.96,0.00027945,7]
[384954019,1757633496613,-400.0,0.00027945,7]
[384954020,1757633496622,-466.17,0.00027945,7]
[384954021,1757633496631,-2021.87,0.00027945,7]
[384954022,1757633496641,-400.0,0.00027945,7]
[384954023,1757633496650,-1299.21,0.00027945,7]
[384954024,1757633496660,-2078.21,0.00027945,7]
[384954025,1757633496670,-2054.39,0.00027945,7]
[384954026,1757633496680,-1611.06,0.00027945,7]
[384954027,1757633496690,-3283.72,0.00027945,7]
[384954028,1757633496699,-2546.19,0.00027945,7]
[384954029,1757633496708,-625.24,0.00027945,7]
[384954030,1757633496718,-1010.54,0.00027945,7]
[384954031,1757633496727,-1133.37,0.00027945,7]
[384954032,1757633496736,-2788.83,0.00027945,7]
[384954033,1757633496746,-1350.88,0.00027945,7]
[384954034,1757633496755,-1161.6,0.00027945,7]
[384954035,1757633496765,-1239.86,0.00027945,7]
[384954036,1757633496775,-400.0,0.00027945,7]
[384954037,1757633496785,-3659.99,0.00027945,7]
[384954038,1757633496795,-400.0,0.00027945,7]
[384954039,1757633496805,-1058.57,0.00027945,7]
[384954040,1757633496814,-400.0,0.00027945,7]
[384954041,1757633496824,-870.59,0.00027945,7]
[384954042,1757633496834,-1051.01,0.00027945,7]
[384954043,1757633496844,-885.69,0.00027945,7]
[384954044,1757633496854,-1221.0,0.00027945,7]
[384954045,1757633496864,-400.0,0.00027945,7]
[384954046,1757633496874,-981.38,0.00027945,7]
[384954047,1757633496885,-2580.89,0.00027945,7]
[384954048,1757633496895,-401.69,0.00027945,7]
[384954049,1757633496907,-1325.12,0.00027945,7]
[384954050,1757633496918,-1406.34,0.00027945,7]
[384954051,1757633496932,-450.31,0.00027945,7]
[384954052,1757633496942,-1966.27,0.00027945,7]
[384954053,1757633496953,-508.18,0.00027945,7]
[384954054,1757633496963,-1031.57,0.00027945,7]
[384954055,1757633496974,-1144.2,0.00027945,7]
[384954056,1757633496984,-400.0,0.00027945,7]
[384954057,1757633496994,-2005.14,0.00027945,7]
[384954058,1757633497005,-400.0,0.00027945,7]
[384954059,1757633497015,-1338.86,0.00027945,7]
[384954060,1757633497025,-400.0,0.00027945,7]
[384954061,1757633497034,-400.0,0.00027945,7]
[384954062,1757633497044,-1705.5,0.00027945,7]
[384954063,1757633497053,-1384.85,0.00027945,7]
[384954064,1757633497062,-752.53,0.00027945,7]
[384954065,1757633497072,-1424.49,0.00027945,7]
[384954066,1757633497082,-1068.12,0.00027945,7]
[384954067,1757633497091,-1543.53,0.00027945,7]
[384954068,1757633497101,-1197.36,0.00027945,7]
[384954069,1757633497110,-1089.51,0.00027945,7]
[384954070,1757633497120,-1419.68,0.00027945,7]
[384954071,1757633497129,-560.91,0.00027945,7]
[384954072,1757633497138,-987.91,0.00027945,7]
[384954073,1757633497148,-1405.14,0.00027945,7]
[384954074,1757633497157,-507.06,0.00027945,7]
[384954075,1757633497167,-400.0,0.00027945,7]
[384954076,1757633497176,-1107.15,0.00027945,7]
[384954077,1757633497186,-400.0,0.00027945,7]
[384954078,1757633497195,-471.07,0.00027945,7]
[384954079,1757633497205,-1286.63,0.00027945,7]
[384954080,1757633497214,-407.66,0.00027945,7]
[384954081,1757633497224,-1615.55,0.00027945,7]
[384954082,1757633497233,-400.0,0.00027945,7]
[384954083,1757633497243,-1227.53,0.00027945,7]
[384954084,1757633497253,-2361.95,0.00027945,7]
[384954085,1757633497263,-1700.02,0.00027945,7]
[384954086,1757633497273,-460.81,0.00027945,7]
[384954087,1757633497283,-1039.07,0.00027945,7]
[384954088,1757633497292,-1435.29,0.00027945,7]
[384954089,1757633497301,-1444.49,0.00027945,7]
[384954090,1757633497311,-442.26,0.00027945,7]
[384954091,1757633497320,-726.73,0.00027945,7]
[384954092,1757633497330,-6639.42,0.00027945,7]
[384954093,1757633497340,-1359.39,0.00027945,7]
[384954094,1757633497350,-2478.99,0.00027945,7]
[384954095,1757633497361,-2076.21,0.00027945,7]
[384954096,1757633497372,-1098.13,0.00027945,7]
[384954097,1757633497382,-1378.72,0.00027945,7]
[384954098,1757633497392,-1274.1,0.00027945,7]
[384954099,1757633497402,-1502.78,0.00027945,7]
[384954100,1757633497411,-499.68,0.00027945,7]
[384954101,1757633497421,-400.0,0.00027945,7]
[384954102,1757633497431,-400.0,0.00027945,7]
[384954103,1757633497441,-400.0,0.00027945,5]
[384954104,1757633497451,-1042.46,0.00027945,7]
[384954105,1757633497460,-3024.01,0.00027945,7]
[384954106,1757633497470,-400.0,0.00027945,7]
[384954107,1757633497479,-1861.34,0.00027945,7]
[384954108,1757633497489,-400.0,0.00027945,7]
[384954109,1757633497499,-444.38,0.00027945,7]
[384954110,1757633497508,-1020.88,0.00027945,7]
[384954111,1757633497518,-2326.81,0.00027945,7]
[384954112,1757633497528,-3357.08,0.00027945,7]
[384954113,1757633497537,-1539.49,0.00027945,7]
[384954114,1757633497546,-407.4,0.00027945,7]
[384954115,1757633497557,-1135.17,0.00027945,7]
[384954116,1757633497566,-1001.4,0.00027945,7]
[384954117,1757633497576,-4286.71,0.00027945,7]
[384954118,1757633497586,-400.0,0.00027945,7]
[384954119,1757633497596,-400.0,0.00027945,7]
[384954120,1757633497605,-1178.15,0.00027945,7]
[384954121,1757633497616,-4759.47,0.00027945,7]
[384954122,1757633497626,-1137.02,0.00027945,7]
[384954123,1757633497637,-1095.27,0.00027945,7]
[384954124,1757633497647,-681.95,0.00027945,7]
[384954125,1757633497659,-1249.41,0.00027945,7]
[384954126,1757633497669,-4804.05,0.00027945,7]
[384954127,1757633497678,-923.45,0.00027945,7]
[384954128,1757633497688,-712.85,0.00027945,7]
[384954129,1757633497698,-1384.54,0.00027945,7]
[384954130,1757633497708,-2383.73,0.00027945,7]
[384954131,1757633497717,-1385.16,0.00027945,7]
[384954132,1757633497727,-400.0,0.00027945,7]
[384954133,1757633497737,-5278.59,0.00027945,7]
[384954134,1757633497746,-1440.73,0.00027945,7]
[384954135,1757633497756,-909.93,0.00027945,7]
[384954136,1757633497766,-1917.55,0.00027945,7]
[384954137,1757633497776,-943.46,0.00027945,7]
[384954138,1757633497786,-400.0,0.00027945,7]
[384954139,1757633497795,-1768.75,0.00027945,7]
[384954140,1757633497805,-400.0,0.00027945,7]
[384954141,1757633497815,-1850.78,0.00027945,7]
[384954142,1757633497825,-400.0,0.00027945,7]
[384954143,1757633497835,-1414.65,0.00027945,7]
[384954144,1757633497845,-2522.98,0.00027945,7]
[384954145,1757633498078,-8915.5,0.00027945,7]
[384954146,1757633498106,-400.0,0.00027945,7]
[384954147,1757633498116,-1506.19,0.00027945,7]
[384954148,1757633498125,-2293.05,0.00027945,7]
[384954149,1757633498134,-646.55,0.00027945,7]
[384954150,1757633498143,-1115.97,0.00027945,7]
[384954151,1757633498152,-400.0,0.00027945,7]
[384954152,1757633498162,-1228.55,0.00027945,7]
[384954153,1757633498171,-400.0,0.00027945,7]
[384954154,1757633498180,-400.0,0.00027945,7]
[384954155,1757633498190,-822.61,0.00027945,7]
[384954156,1757633498200,-2894.96,0.00027945,7]
[384954157,1757633498210,-400.0,0.00027945,7]
[384954158,1757633498220,-400.0,0.00027945,7]
[384954159,1757633498230,-1099.92,0.00027945,7]
[384954160,1757633498239,-1192.58,0.00027945,7]
[384954161,1757633498249,-1361.61,0.00027945,7]
[384954162,1757633498259,-1669.73,0.00027945,7]
[384954163,1757633498268,-1391.18,0.00027945,7]
[384954164,1757633498277,-400.0,0.00027945,7]
[384954165,1757633498286,-487.65,0.00027945,7]
[384954166,1757633498296,-1005.66,0.00027945,7]
[384954167,1757633498305,-400.0,0.00027945,7]
[384954168,1757633498315,-788.43,0.00027945,7]
[384954169,1757633498324,-4228.2,0.00027945,7]
[384954170,1757633498333,-1287.44,0.00027945,7]
[384954171,1757633498343,-581.85,0.00027945,7]
[384954172,1757633498352,-400.0,0.00027945,7]
[384954173,1757633498361,-632.0,0.00027945,7]
[384954174,1757633498371,-234.09633095,0.00027945,7]
[384954175,1757633498380,-400.0,0.00027945,7]
[384954176,1757633498389,-492.57,0.00027945,7]
[384954177,1757633498399,-400.0,0.00027945,7]
[384954178,1757633498409,-674.36,0.00027945,7]
[384954179,1757633498418,-400.0,0.00027945,7]
[384954180,1757633498427,-1523.77,0.00027945,7]
[384954181,1757633498436,-3392.45,0.00027945,7]
[384954182,1757633498446,-400.0,0.00027945,7]
[384954183,1757633498456,-788.79,0.00027945,7]
[384954184,1757633498465,-400.0,0.00027945,7]
[384954185,1757633498474,-693.52,0.00027945,7]
[384954186,1757633498484,-633.62,0.00027945,7]
[384954187,1757633498493,-571.68,0.00027945,7]
[384954188,1757633498503,-3716.07,0.00027945,7]
[384954189,1757633498511,-400.0,0.00027945,7]
[384954190,1757633498521,-400.0,0.00027945,7]
[384954191,1757633498531,-2442.24,0.00027945,7]
[384954192,1757633498540,-993.53,0.00027945,7]
[384954193,1757633498550,-1414.86,0.00027945,7]
[384954194,1757633498559,-492.14,0.00027945,7]
[384954195,1757633498568,-1644.51,0.00027945,7]
[384954196,1757633498577,-1049.17,0.00027945,7]
[384954197,1757633498587,-424.56523068,0.00027945,7]
[384954198,1757633498596,-730.7,0.00027945,7]
[384954199,1757633498605,-3663.04,0.00027945,7]
[384954200,1757633498615,-625.87,0.00027945,7]
[384954201,1757633498624,-444.87,0.00027945,7]
[384954202,1757633498634,-591.04,0.00027945,7]
[384954203,1757633498644,-1449.18,0.00027945,7]
[384954204,1757633498654,-3224.91,0.00027945,7]
[384954205,1757633498663,-1564.29,0.00027945,7]
[384954206,1757633498672,-1008.68,0.00027945,7]
[384954207,1757633498681,-1052.95,0.00027945,7]
[384954208,1757633498691,-669.52,0.00027945,7]
[384954209,1757633498701,-400.0,0.00027945,7]
[384954210,1757633498710,-1219.73,0.00027945,7]
[384954211,1757633498720,-990.64,0.00027945,7]
[384954212,1757633498729,-400.0,0.00027945,7]
[384954213,1757633498739,-436.74,0.00027945,7]
[384954214,1757633498748,-464.91,0.00027945,7]
[384954215,1757633498757,-4257.44,0.00027945,7]
[384954216,1757633498767,-400.0,0.00027945,7]
[384954217,1757633498777,-400.0,0.00027945,7]
[384954218,1757633498786,-1555.95,0.00027945,7]
[384954219,1757633498796,-400.0,0.00027945,7]
[384954220,1757633498805,-1593.33,0.00027945,7]
[384954221,1757633498815,-1898.89,0.00027945,7]
[384954222,1757633498825,-400.0,0.00027945,7]
[384954223,1757633498835,-482.11,0.00027945,7]
[384954224,1757633498844,-424.44,0.00027945,7]
[384954225,1757633498854,-419.72,0.00027945,7]
[384954226,1757633498864,-182.14130355,0.00027957,2]
[384954227,1757633498874,-267.0,0.0002797,2]
[384954228,1757633498883,-194.02142,0.00027973,5]
[384954229,1757633498894,-7000.0,0.0002798,2]
[384954230,1757633498904,-1002.65569303,0.00028,3]
[384954231,1757633498915,-5321.46,0.00028,2]
[384954232,1757633498925,-4900.97849143,0.00028,2]
[384954233,1757633498940,-168.0,0.00028017,2]
[384954234,1757633498949,-18874.96559729,0.00028025,2]
[384954235,1757633498959,-9372.37973855,0.0002806,2]
[384954236,1757633498969,-168.0,0.00028096,2]
[384954237,1757633498979,-18874.96559729,0.00028119,2]
[384954238,1757633498988,-413.05776254,0.00028119,2]
[384954239,1757633498997,-166.77744614,0.00028119,2]
[384954240,1757633499009,-168.0,0.00028124,2]
[384954241,1757633499018,-168.0,0.00028142,2]
[384954242,1757633499028,-393.71851683,0.00028185,4]
[384954243,1757633499037,-168.0,0.00028213,2]
[384954244,1757633499047,-889.61,0.00028217,7]
[384954245,1757633499056,-666.0,0.00028218,10]
[384954246,1757633499066,-300.0,0.00028218,10]
[384954247,1757633499075,-300.0,0.00028218,10]
[384954248,1757633499085,-300.0,0.00028218,10]
[384954249,1757633499094,-300.0,0.00028218,10]
[384954250,1757633499104,-300.0,0.00028218,10]
[384954251,1757633499115,-300.0,0.00028218,10]
[384954252,1757633499125,-300.0,0.00028218,10]
[384954253,1757633499134,-500.0,0.00028218,7]
[384954254,1757633499143,-500.0,0.00028218,7]
[384954255,1757633499153,-500.0,0.00028218,7]
[384954256,1757633499161,-889.61,0.00028218,7]
[384954257,1757633499171,-889.61,0.00028218,7]
[384954258,1757633499180,-613.49,0.00028218,7]
[384954259,1757633499189,-613.49,0.00028218,7]
[384954260,1757633499199,-613.49,0.00028218,7]
[384954261,1757633499217,-648.34,0.00028218,7]
[384954262,1757633499226,-648.34,0.00028218,7]
[384954263,1757633499236,-648.34,0.00028218,7]
[384954264,1757633499245,-800.0,0.00028218,7]
[384954265,1757633499255,-2200.0,0.00028218,7]
[384954266,1757633499265,-500.0,0.00028219,7]
[384954267,1757633499274,-500.0,0.00028219,7]
[384954268,1757633499284,-500.0,0.00028219,7]
[384954269,1757633499294,-311.34765749,0.00028219,7]
[384954270,1757633499304,-150.0,0.00028219,2]
[384954271,1757633499313,-437.0,0.00028219,7]
[384954272,1757633499323,-600.0,0.00028219,2]
[384954273,1757633499333,-150.0,0.00028219,7]
[384954274,1757633499343,-500.0,0.00028219,7]
[384954275,1757633499352,-3072.0,0.00028219,7]
[384954276,1757633499361,-150.0,0.00028219,7]
[384954277,1757633499374,-350.0,0.00028219,7]
[384954278,1757633499393,-150.0,0.00028219,2]
[384954279,1757633499405,-500.0,0.00028219,7]
[384954280,1757633499415,-500.0,0.00028219,7]
[384954281,1757633499425,-500.0,0.00028219,7]
[384954282,1757633499435,-500.0,0.00028219,7]
[384954283,1757633499444,-150.0,0.00028219,7]
[384954284,1757633499454,-500.0,0.00028219,7]
[384954285,1757633499463,-150.0,0.00028219,7]
[384954286,1757633499473,-200.0,0.00028219,7]
[384954287,1757633499483,-207.63629092,0.00028219,7]
[384954288,1757633499493,-200.0,0.00028219,7]
[384954289,1757633499503,-1000.0,0.00028219,7]
[384954290,1757633499512,-158.085363,0.00028219,7]
[384954291,1757633499521,-158.254711,0.00028219,7]
[384954292,1757633499531,-424.01,0.00028219,7]
[384954293,1757633499540,-400.0,0.00028219,7]
[384954294,1757633499549,-400.0,0.00028219,7]
[384954295,1757633499559,-644.7,0.00028219,7]
[384954296,1757633499568,-939.76,0.00028219,7]
[384954297,1757633499577,-568.64,0.00028219,7]
[384954298,1757633499587,-846.97,0.00028219,7]
[384954299,1757633499596,-400.0,0.00028219,7]
[384954300,1757633499605,-400.0,0.00028219,7]
[384954301,1757633499615,-400.0,0.00028219,7]
[384954302,1757633499624,-400.0,0.00028219,7]
[384954303,1757633499634,-1152.69,0.00028219,7]
[384954304,1757633499644,-400.0,0.00028219,7]
[384954305,1757633499653,-961.48,0.00028219,7]
[384954306,1757633499664,-400.0,0.00028219,7]
[384954307,1757633499674,-629.39,0.00028219,7]
[384954308,1757633499683,-275.45381263,0.00028219,7]
[384954309,1757633499692,-400.0,0.00028219,7]
[384954310,1757633499704,-400.0,0.00028219,7]
[384954311,1757633499713,-831.63,0.00028219,7]
[384954312,1757633499723,-400.0,0.00028219,7]
[384954313,1757633499732,-400.0,0.00028219,7]
[384954314,1757633499742,-800.48,0.00028219,7]
[384954315,1757633499751,-400.0,0.00028219,7]
[384954316,1757633499762,-400.0,0.00028219,7]
[384954317,1757633499771,-400.0,0.00028219,7]
[384954318,1757633499780,-1171.77,0.00028219,7]
[384954319,1757633499791,-400.0,0.00028219,7]
[384954320,1757633499800,-400.0,0.00028219,7]
[384954321,1757633499810,-400.63,0.00028219,7]
[384954322,1757633499819,-400.0,0.00028219,7]
[384954323,1757633499829,-478.53,0.00028219,7]
[384954324,1757633499839,-1120.26,0.00028219,7]
[384954325,1757633499848,-511.9,0.00028219,7]
[384954326,1757633499858,-400.0,0.00028219,7]
[384954327,1757633499867,-400.0,0.00028219,7]
[384954328,1757633499877,-400.0,0.00028219,7]
[384954329,1757633499886,-2189.62,0.00028219,7]
[384954330,1757633499896,-400.0,0.00028219,7]
[384954331,1757633499906,-400.0,0.00028219,7]
[384954332,1757633499915,-400.0,0.00028219,7]